[Event "LEM Niedersachsen-A-Open 2025"]
[Site "Verden"]
[Date "2025.01.02"]
[Round "2.7"]
[White "Zweigait, Leon"]
[Black "Renner, Kai"]
[Result "1-0"]
[ECO "A21"]
[WhiteElo "1865"]
[BlackElo "2080"]
[Annotator "NA RC"]
[PlyCount "103"]
[EventDate "2024.12.27"]
[EventType "swiss"]
[EventCountry "GER"]
[SourceTitle "playchess.com"]
[Source "ChessBase"]
[SourceQuality "1"]
[TimeControl "40/5400+30:1800+30"]

1. c4 {[%emt 0:00:02]} f5 {[%emt 0:00:10]} 2. Nc3 {[%emt 0:00:23]} Nf6 {[%emt 0:00:12]} 3. d4 {[%emt 0:00:36]} d6 {[%emt 0:00:17]} 4. g3 {[%emt 0:00:17]} g6 {[%emt 0:00:14]} 5. Bg2 {[%emt 0:00:17]} Bg7 {[%emt 0:00:06]} 6. e3 {[%emt 0:01:57]} O-O {[%emt 0:00:48]} 7. Nge2 {[%emt 0:00:23]} e5 {[%emt 0:02:48]} 8. O-O {[%emt 0:02:14]} c6 {[%emt 0:03:56]} 9. b4 {[%emt 0:01:40]} e4 {[%emt 0:04:16]} 10. d5 {[%emt 0:02:23]} a5 {[%emt 0:08:32]} 11. dxc6 {[%emt 0:01:20]} Nxc6 {[%emt 0:03:44]} 12. b5 {[%emt 0:04:55]} Ne5 {[%emt 0:01:28]} 13. Qb3 {[%emt 0:00:12]} Be6 {[%emt 0:01:31]} 14. Nd5 {[%emt 0:02:54]} Nxc4 {[%emt 0:21:50]} 15. Nef4 {[%emt 0:00:27]} Bxd5 {[%emt 0:00:30]} 16. Nxd5 {[%emt 0:00:10]} Nxd5 {[%emt 0:00:39]} 17. Qxc4 {[%emt 0:00:21]} Bxa1 {[%emt 0:00:36]} 18. Qxd5+ {[%emt 0:01:27]} Rf7 {[%emt 0:01:34]} 19. Rd1 {[%emt 0:00:19]} Be5 {[%emt 0:05:08]} 20. Bf1 {[%emt 0:00:29]} Kg7 {[%emt 0:01:22]} 21. Bc4 {[%emt 0:02:32]} Re7 {[%emt 0:03:18]} 22. Ba3 {[%emt 0:00:49]} Rc8 {[%emt 0:06:13]} 23. Bb3 {[%emt 0:00:39]} b6 {[%emt 0:05:54]} 24. Kg2 {[%emt 0:03:34]} Rd7 {[%emt 0:01:42]} 25. h4 {[%emt 0:01:38]} Qf6 {[%emt 0:00:32]} 26. Rd2 {[%emt 0:02:46]} Bc3 {[%emt 0:06:36]} 27. Rc2 {[%emt 0:01:31]} Qe5 {[%emt 0:04:06]} 28. Qxe5+ {[%emt 0:01:52]} dxe5 {[%emt 0:00:19]} 29. Be6 {[%emt 0:00:09]} Rdc7 {[%emt 0:06:58]} 30. Bxc8 {[%emt 0:01:19]} Rxc8 {[%emt 0:00:08]} 31. Bb2 {[%emt 0:00:08]} Rc5 {[%emt 0:00:31]} 32. Rxc3 {[%emt 0:00:38]} Rxb5 {[%emt 0:00:40]} 33. Rb3 {[%emt 0:00:06]} Rxb3 {[%emt 0:00:11]} 34. Bxe5+ {[%emt 0:00:08]} Kf7 {[%emt 0:00:08]} 35. axb3 {[%emt 0:00:21]} b5 {[%emt 0:00:06]} 36. g4 {[%emt 0:01:34]} fxg4 {[%emt 0:01:13]} 37. Kg3 {[%emt 0:00:08]} Ke6 {[%emt 0:00:38]} 38. Bc3 {[%emt 0:00:29]} a4 {[%emt 0:07:23]} 39. bxa4 {[%emt 0:00:18]} bxa4 {[%emt 0:00:11]} 40. Kxg4 {[%emt 0:00:09]} Kd5 {[%emt 0:00:37]} 41. Kf4 {[%emt 0:30:12]} Kc4 {[%emt 0:30:07]} 42. Bg7 {[%emt 0:00:54]} Kd3 {[%emt 0:00:09]} 43. Ke5 {[%emt 0:00:21]} a3 {[%emt 0:00:14]} 44. Kd5 {[%emt 0:00:07]} a2 {[%emt 0:00:13]} 45. Bd4 {[%emt 0:00:35]} h6 {[%emt 0:01:39]} 46. Ke5 {[%emt 0:00:05]} g5 {[%emt 0:00:40]} 47. hxg5 {[%emt 0:00:18]} hxg5 {[%emt 0:00:05]} 48. Kf5 {[%emt 0:00:04]} Ke2 {[%emt 0:00:16]} 49. Kxg5 {[%emt 0:00:09]} Kxf2 {[%emt 0:00:04]} 50. Kf4 {[%emt 0:00:09]} Ke2 {[%emt 0:00:20]} 51. Kxe4 {[%emt 0:00:07]} Kd2 {[%emt 0:00:03]} 52. Ba1 {[%emt 0:01:12]} 1-0

[Event "LEM Niedersachsen-A-Open 2025"]
[Site "Verden"]
[Date "2025.01.02"]
[Round "2.8"]
[White "Vormann, Dirk"]
[Black "Becker, Stefan"]
[Result "0-1"]
[ECO "A43"]
[WhiteElo "1860"]
[BlackElo "2036"]
[Annotator "NA RC"]
[PlyCount "32"]
[EventDate "2024.12.27"]
[EventType "swiss"]
[EventCountry "GER"]
[SourceTitle "playchess.com"]
[Source "ChessBase"]
[SourceQuality "1"]
[TimeControl "40/5400+30:1800+30"]

1. d4 {[%emt 0:00:03]} c5 {[%emt 0:00:42]} 2. Nf3 {[%emt 0:00:54]} cxd4 {[%emt 0:00:23]} 3. Nxd4 {[%emt 0:00:24]} d5 {[%emt 0:01:06]} 4. e3 {[%emt 0:00:20]} e5 {[%emt 0:02:57]} 5. Nf3 {[%emt 0:00:08]} Nc6 {[%emt 0:00:20]} 6. Be2 {[%emt 0:00:27]} Nf6 {[%emt 0:00:22]} 7. O-O {[%emt 0:00:14]} Bd6 {[%emt 0:04:53]} 8. c4 {[%emt 0:03:40]} dxc4 {[%emt 0:02:34]} 9. Bxc4 {[%emt 0:00:11]} O-O {[%emt 0:01:36]} 10. Nc3 {[%emt 0:00:47]} e4 {[%emt 0:10:56]} 11. Ng5 {[%emt 0:13:36]} Bxh2+ {[%emt 0:10:38]} 12. Kh1 {[%emt 0:00:04]} Bd6 {[%emt 0:02:44]} 13. Nb5 {[%emt 0:08:08]} Be5 {[%emt 0:07:23]} 14. Nxf7 {[%emt 0:12:46]} Rxf7 {[%emt 0:04:47]} 15. Qxd8+ {[%emt 0:00:21]} Nxd8 {[%emt 0:00:04]} 16. Rd1 {[%emt 0:00:36]} Be6 {[%emt 0:04:20]} 0-1

[Event "LEM Niedersachsen-A-Open 2025"]
[Site "Verden"]
[Date "2025.01.02"]
[Round "2.9"]
[White "Hoellman, Ludger"]
[Black "Langer, Michael S."]
[Result "1-0"]
[ECO "E18"]
[WhiteElo "2026"]
[BlackElo "1933"]
[Annotator "NA RC"]
[PlyCount "45"]
[EventDate "2024.12.27"]
[EventType "swiss"]
[EventCountry "GER"]
[SourceTitle "playchess.com"]
[Source "ChessBase"]
[SourceQuality "1"]
[TimeControl "40/5400+30:1800+30"]

1. d4 {[%emt 0:00:02]} e6 {[%emt 0:00:33]} 2. c4 {[%emt 0:00:19]} b6 {[%emt 0:00:34]} 3. Nc3 {[%emt 0:04:57]} Bb7 {[%emt 0:00:36]} 4. Nf3 {[%emt 0:04:32]} f5 {[%emt 0:02:04]} 5. g3 {[%emt 0:00:48]} Nf6 {[%emt 0:02:09]} 6. Bg2 {[%emt 0:00:52]} Be7 {[%emt 0:04:40]} 7. O-O {[%emt 0:00:45]} Ne4 {[%emt 0:08:48]} 8. Bd2 {[%emt 0:01:35]} O-O {[%emt 0:04:11]} 9. Rc1 {[%emt 0:06:52]} Bf6 {[%emt 0:05:35]} 10. e3 {[%emt 0:23:27]} a6 {[%emt 0:04:53]} 11. b3 {[%emt 0:06:09]} d6 {[%emt 0:02:25]} 12. Ne1 {[%emt 0:01:36]} Nxc3 {[%emt 0:03:02]} 13. Bxc3 {[%emt 0:00:12]} Bxg2 {[%emt 0:00:11]} 14. Kxg2 {[%emt 0:00:58]} Nd7 {[%emt 0:02:10]} 15. Nd3 {[%emt 0:02:21]} Qe8 {[%emt 0:11:13]} 16. Qf3 {[%emt 0:03:06]} g5 {[%emt 0:13:48]} 17. Qc6 {[%emt 0:07:54]} Rc8 {[%emt 0:05:11]} 18. f4 {[%emt 0:01:29]} g4 {[%emt 0:03:01]} 19. e4 {[%emt 0:05:09]} Qf7 {[%emt 0:07:07]} 20. Rfe1 {[%emt 0:09:23]} Qg7 {[%emt 0:04:52]} 21. e5 {[%emt 0:03:54]} dxe5 {[%emt 0:05:58]} 22. dxe5 {[%emt 0:01:25]} Bd8 {[%emt 0:01:14]} 23. Qxe6+ {[%emt 0:00:49]} 1-0

[Event "LEM Niedersachsen-A-Open 2025"]
[Site "Verden"]
[Date "2025.01.02"]
[Round "2.10"]
[White "Direk, Oguzhan"]
[Black "Koch, Yannick"]
[Result "0-1"]
[ECO "B13"]
[WhiteElo "1838"]
[BlackElo "2024"]
[Annotator "NA RC"]
[PlyCount "126"]
[EventDate "2024.12.27"]
[EventType "swiss"]
[EventCountry "GER"]
[SourceTitle "playchess.com"]
[Source "ChessBase"]
[SourceQuality "1"]
[TimeControl "40/5400+30:1800+30"]

1. d4 {[%emt 0:00:04]} Nf6 {[%emt 0:00:18]} 2. Nc3 {[%emt 0:00:08]} d5 {[%emt 0:00:31]} 3. Bf4 {[%emt 0:00:11]} c5 {[%emt 0:01:09]} 4. e3 {[%emt 0:00:51]} cxd4 {[%emt 0:00:33]} 5. exd4 {[%emt 0:00:06]} Bg4 {[%emt 0:01:38]} 6. Be2 {[%emt 0:01:37]} Bxe2 {[%emt 0:00:41]} 7. Qxe2 {[%emt 0:00:06]} a6 {[%emt 0:01:53]} 8. Nf3 {[%emt 0:00:07]} e6 {[%emt 0:00:27]} 9. O-O {[%emt 0:00:33]} Nc6 {[%emt 0:01:26]} 10. h3 {[%emt 0:06:50]} Bd6 {[%emt 0:00:40]} 11. Qd2 {[%emt 0:09:22]} O-O {[%emt 0:01:33]} 12. Ne2 {[%emt 0:03:53]} Ne4 {[%emt 0:02:04]} 13. Qe3 {[%emt 0:02:36]} b5 {[%emt 0:15:45]} 14. Nd2 {[%emt 0:03:33]} Bxf4 {[%emt 0:04:06]} 15. Nxf4 {[%emt 0:04:38]} Nd6 {[%emt 0:05:31]} 16. c3 {[%emt 0:10:07]} Re8 {[%emt 0:06:10]} 17. Nd3 {[%emt 0:03:23]} Qb6 {[%emt 0:02:21]} 18. Qf4 {[%emt 0:09:31]} Red8 {[%emt 0:04:12]} 19. a3 {[%emt 0:03:44]} Na5 {[%emt 0:01:26]} 20. Ne5 {[%emt 0:02:43]} Ra7 {[%emt 0:01:29]} 21. Rfc1 {[%emt 0:05:29]} Ndc4 {[%emt 0:01:34]} 22. b4 {[%emt 0:03:46]} Nc6 {[%emt 0:02:30]} 23. Ndxc4 {[%emt 0:00:39]} dxc4 {[%emt 0:00:58]} 24. a4 {[%emt 0:01:16]} Nxe5 {[%emt 0:02:07]} 25. Qxe5 {[%emt 0:00:59]} Rd5 {[%emt 0:04:29]} 26. Qe2 {[%emt 0:01:44]} Rg5 {[%emt 0:03:20]} 27. axb5 {[%emt 0:05:36]} axb5 {[%emt 0:00:21]} 28. Ra2 {[%emt 0:02:14]} Qb7 {[%emt 0:02:59]} 29. f4 {[%emt 0:00:15]} Rxa2 {[%emt 0:06:35]} 30. Qxa2 {[%emt 0:00:05]} Rg3 {[%emt 0:03:55]} 31. Ra1 {[%emt 0:08:30]} g6 {[%emt 0:01:03]} 32. Qa8+ {[%emt 0:04:15]} Qxa8 {[%emt 0:00:17]} 33. Rxa8+ {[%emt 0:00:11]} Kg7 {[%emt 0:00:05]} 34. Ra3 {[%emt 0:00:23]} h5 {[%emt 0:01:51]} 35. Kf2 {[%emt 0:01:00]} h4 {[%emt 0:00:34]} 36. Ra5 {[%emt 0:00:34]} Rxc3 {[%emt 0:00:31]} 37. Rxb5 {[%emt 0:00:03]} Rd3 {[%emt 0:06:52]} 38. Rc5 {[%emt 0:00:26]} Rxd4 {[%emt 0:01:16]} 39. b5 {[%emt 0:00:10]} Rd2+ {[%emt 0:11:27]} 40. Kf3 {[%emt 0:00:20]} Rb2 {[%emt 0:00:26]} 41. Rxc4 {[%emt 0:31:19]} Rxb5 {[%emt 0:30:09]} 42. Kg4 {[%emt 0:00:08]} Rb2 {[%emt 0:00:33]} 43. Kf3 {[%emt 0:00:50]} Rb3+ {[%emt 0:02:09]} 44. Kf2 {[%emt 0:00:23]} Kf6 {[%emt 0:01:31]} 45. Rc5 {[%emt 0:00:44]} Rd3 {[%emt 0:00:00]} 46. Rg5 {[%emt 0:00:00]} Rd5 {[%emt 0:00:00]} 47. Rg4 {[%emt 0:00:00]} Rh5 {[%emt 0:00:00]} 48. g3 {[%emt 0:00:00]} hxg3+ {[%emt 0:00:00]} 49. Rxg3 {[%emt 0:00:00]} Kf5 {[%emt 0:00:00]} 50. Rf3 {[%emt 0:00:00]} Ke4 {[%emt 0:00:00]} 51. Kg2 {[%emt 0:00:00]} Rf5 {[%emt 0:00:00]} 52. Kg3 {[%emt 0:00:00]} e5 {[%emt 0:00:00]} 53. Ra3 {[%emt 0:00:00]} Rxf4 {[%emt 0:00:00]} 54. Ra4+ {[%emt 0:00:00]} Kf5 {[%emt 0:00:00]} 55. Ra7 {[%emt 0:00:00]} f6 {[%emt 0:00:00]} 56. Ra5 {[%emt 0:00:00]} Rb4 {[%emt 0:00:00]} 57. Ra6 {[%emt 0:00:00]} Rb3+ {[%emt 0:00:00]} 58. Kg2 {[%emt 0:00:00]} e4 {[%emt 0:00:00]} 59. Rc6 {[%emt 0:00:00]} Rf3 {[%emt 0:00:00]} 60. Ra6 {[%emt 0:00:00]} Kg5 {[%emt 0:00:00]} 61. Rb6 {[%emt 0:00:00]} f5 {[%emt 0:00:00]} 62. h4+ {[%emt 0:00:00]} Kh5 {[%emt 0:00:00]} 63. Re6 {[%emt 0:00:00]} Rf4 {[%emt 0:00:00]} 0-1

[Event "LEM Niedersachsen-A-Open 2025"]
[Site "Verden"]
[Date "2025.01.02"]
[Round "2.11"]
[White "Kieselbach, Marvin"]
[Black "Burnus, Finn Crispin"]
[Result "1/2-1/2"]
[ECO "C88"]
[WhiteElo "2008"]
[BlackElo "1883"]
[Annotator "NA RC"]
[PlyCount "35"]
[EventDate "2024.12.27"]
[EventType "swiss"]
[EventCountry "GER"]
[SourceTitle "playchess.com"]
[Source "ChessBase"]
[SourceQuality "1"]
[TimeControl "40/5400+30:1800+30"]

1. e4 {[%emt 0:00:21]} e5 {[%emt 0:00:17]} 2. Nf3 {[%emt 0:00:13]} Nc6 {[%emt 0:00:06]} 3. Bb5 {[%emt 0:00:23]} a6 {[%emt 0:00:07]} 4. Ba4 {[%emt 0:00:06]} Nf6 {[%emt 0:00:04]} 5. O-O {[%emt 0:00:14]} b5 {[%emt 0:00:07]} 6. Bb3 {[%emt 0:00:06]} Be7 {[%emt 0:00:06]} 7. Re1 {[%emt 0:00:30]} O-O {[%emt 0:00:12]} 8. a4 {[%emt 0:01:34]} Rb8 {[%emt 0:03:25]} 9. axb5 {[%emt 0:00:34]} axb5 {[%emt 0:00:07]} 10. d4 {[%emt 0:03:11]} d6 {[%emt 0:04:34]} 11. dxe5 {[%emt 0:01:06]} Nxe5 {[%emt 0:00:24]} 12. Nxe5 {[%emt 0:00:50]} dxe5 {[%emt 0:00:06]} 13. Qe2 {[%emt 0:03:20]} Bc5 {[%emt 0:04:59]} 14. h3 {[%emt 0:03:30]} Qe7 {[%emt 0:06:51]} 15. Nc3 {[%emt 0:07:25]} c6 {[%emt 0:01:26]} 16. Qf3 {[%emt 0:05:28]} h6 {[%emt 0:05:45]} 17. Nd1 {[%emt 0:02:42]} Bb7 {[%emt 0:14:43]} 18. Be3 {[%emt 0:05:53]} 1/2-1/2

[Event "LEM Niedersachsen-A-Open 2025"]
[Site "Verden"]
[Date "2025.01.02"]
[Round "2.12"]
[White "Loecken, Siegfried"]
[Black "Sayas Payyappat"]
[Result "0-1"]
[ECO "A10"]
[WhiteElo "2004"]
[BlackElo "1823"]
[Annotator "NA RC"]
[PlyCount "40"]
[EventDate "2024.12.27"]
[EventType "swiss"]
[EventCountry "GER"]
[SourceTitle "playchess.com"]
[Source "ChessBase"]
[SourceQuality "1"]
[TimeControl "40/5400+30:1800+30"]

1. Nf3 {[%emt 0:00:01]} Nc6 {[%emt 0:00:29]} 2. c4 {[%emt 0:00:33]} d6 {[%emt 0:01:15]} 3. g3 {[%emt 0:00:09]} e5 {[%emt 0:01:13]} 4. d3 {[%emt 0:00:08]} Be6 {[%emt 0:01:01]} 5. Nc3 {[%emt 0:00:13]} Be7 {[%emt 0:00:54]} 6. Bg2 {[%emt 0:00:09]} Qd7 {[%emt 0:03:23]} 7. Nd5 {[%emt 0:01:52]} Nf6 {[%emt 0:02:13]} 8. Ng5 {[%emt 0:00:31]} O-O {[%emt 0:01:19]} 9. Nxe6 {[%emt 0:00:23]} fxe6 {[%emt 0:00:32]} 10. Nxe7+ {[%emt 0:00:24]} Qxe7 {[%emt 0:00:09]} 11. O-O {[%emt 0:00:11]} Rad8 {[%emt 0:00:37]} 12. b4 {[%emt 0:04:59]} Nxb4 {[%emt 0:01:18]} 13. Rb1 {[%emt 0:00:26]} c5 {[%emt 1:22:37]} 14. Qa4 {[%emt 0:03:52]} d5 {[%emt 0:00:00]} 15. Qxa7 {[%emt 0:10:04]} Ra8 {[%emt 0:00:00]} 16. Qb6 {[%emt 0:00:09]} Rxa2 {[%emt 0:00:00]} 17. Bb2 {[%emt 0:00:12]} d4 {[%emt 0:00:00]} 18. Qxb7 {[%emt 0:00:30]} Qxb7 {[%emt 0:00:00]} 19. Bxb7 {[%emt 0:00:02]} Rb8 {[%emt 0:00:00]} 20. Bf3 {[%emt 0:00:11]} Nc2 {[%emt 0:00:00]} 0-1

[Event "LEM Niedersachsen-A-Open 2025"]
[Site "Verden"]
[Date "2025.01.02"]
[Round "2.13"]
[White "Ploog, Martin"]
[Black "Lieb, Max"]
[Result "1-0"]
[ECO "D30"]
[WhiteElo "2001"]
[BlackElo "1791"]
[Annotator "NA RC"]
[PlyCount "100"]
[EventDate "2024.12.27"]
[EventType "swiss"]
[EventCountry "GER"]
[SourceTitle "playchess.com"]
[Source "ChessBase"]
[SourceQuality "1"]
[TimeControl "40/5400+30:1800+30"]

1. c4 {[%emt 0:00:06]} Nf6 {[%emt 0:00:07]} 2. g3 {[%emt 0:00:09]} e6 {[%emt 0:00:09]} 3. Bg2 {[%emt 0:00:16]} d5 {[%emt 0:00:07]} 4. Nf3 {[%emt 0:00:10]} Be7 {[%emt 0:02:36]} 5. O-O {[%emt 0:00:22]} O-O {[%emt 0:00:16]} 6. b3 {[%emt 0:00:17]} c5 {[%emt 0:01:45]} 7. cxd5 {[%emt 0:00:16]} exd5 {[%emt 0:00:23]} 8. d4 {[%emt 0:00:17]} Nc6 {[%emt 0:00:52]} 9. Bb2 {[%emt 0:00:36]} Re8 {[%emt 0:02:27]} 10. Nbd2 {[%emt 0:15:00]} b6 {[%emt 0:05:43]} 11. e3 {[%emt 0:10:11]} Ba6 {[%emt 0:07:20]} 12. Re1 {[%emt 0:06:12]} Rc8 {[%emt 0:00:26]} 13. Ne5 {[%emt 0:03:21]} cxd4 {[%emt 0:04:40]} 14. Nxc6 {[%emt 0:00:31]} Rxc6 {[%emt 0:00:11]} 15. Bxd4 {[%emt 0:00:40]} Qc7 {[%emt 0:15:54]} 16. Rc1 {[%emt 0:06:25]} Rc8 {[%emt 0:04:58]} 17. Rxc6 {[%emt 0:01:23]} Qxc6 {[%emt 0:00:11]} 18. Bh3 {[%emt 0:04:09]} Rd8 {[%emt 0:07:54]} 19. Qb1 {[%emt 0:03:35]} Ba3 {[%emt 0:13:53]} 20. Bf5 {[%emt 0:26:22]} h6 {[%emt 0:09:15]} 21. Nf3 {[%emt 0:10:14]} Bc8 {[%emt 0:03:51]} 22. Bxc8 {[%emt 0:03:49]} Rxc8 {[%emt 0:00:20]} 23. Bxf6 {[%emt 0:02:34]} Qxf6 {[%emt 0:00:59]} 24. Nd4 {[%emt 0:00:21]} a6 {[%emt 0:05:14]} 25. Qd3 {[%emt 0:01:54]} b5 {[%emt 0:01:16]} 26. Rd1 {[%emt 0:01:33]} Qe5 {[%emt 0:03:09]} 27. Ne2 {[%emt 0:00:47]} Qe4 {[%emt 0:02:21]} 28. Qxd5 {[%emt 0:01:09]} Qxd5 {[%emt 0:00:13]} 29. Rxd5 {[%emt 0:00:11]} Rc2 {[%emt 0:00:10]} 30. Nd4 {[%emt 0:00:14]} Rxa2 {[%emt 0:00:16]} 31. Rd8+ {[%emt 0:00:11]} Kh7 {[%emt 0:00:17]} 32. Ra8 {[%emt 0:00:23]} Bb2 {[%emt 0:01:42]} 33. Nc6 {[%emt 0:00:49]} Bc3 {[%emt 0:01:04]} 34. Ra7 {[%emt 0:01:00]} Be1 {[%emt 0:00:42]} 35. Rxf7 {[%emt 0:00:21]} a5 {[%emt 0:03:11]} 36. Kf1 {[%emt 0:00:41]} Bc3 {[%emt 0:00:38]} 37. Rb7 {[%emt 0:00:52]} b4 {[%emt 0:00:47]} 38. Ra7 {[%emt 0:00:20]} a4 {[%emt 0:00:49]} 39. Nxb4 {[%emt 0:01:14]} Ra1+ {[%emt 0:00:32]} 40. Ke2 {[%emt 0:00:12]} axb3 {[%emt 0:00:07]} 41. Rxa1 {[%emt 0:30:13]} Bxa1 {[%emt 0:30:08]} 42. Kd1 {[%emt 0:00:31]} Kg6 {[%emt 0:01:33]} 43. Nd3 {[%emt 0:00:50]} Kf5 {[%emt 0:01:02]} 44. f3 {[%emt 0:00:43]} Bc3 {[%emt 0:01:41]} 45. Nc5 {[%emt 0:00:58]} b2 {[%emt 0:00:36]} 46. Kc2 {[%emt 0:00:20]} h5 {[%emt 0:00:28]} 47. e4+ {[%emt 0:00:23]} Ke5 {[%emt 0:00:20]} 48. Na4 {[%emt 0:00:50]} Bd4 {[%emt 0:01:21]} 49. Nxb2 {[%emt 0:00:30]} Bg1 {[%emt 0:00:13]} 50. Nd3+ {[%emt 0:00:00]} Kd4 {[%emt 0:00:00]} 1-0

[Event "LEM Niedersachsen-A-Open 2025"]
[Site "Verden"]
[Date "2025.01.02"]
[Round "2.14"]
[White "Bundan, Edward"]
[Black "Hilker, Bjoern"]
[Result "1/2-1/2"]
[ECO "D02"]
[WhiteElo "1822"]
[BlackElo "1993"]
[Annotator "NA RC"]
[PlyCount "56"]
[EventDate "2024.12.27"]
[EventType "swiss"]
[EventCountry "GER"]
[SourceTitle "playchess.com"]
[Source "ChessBase"]
[SourceQuality "1"]
[TimeControl "40/5400+30:1800+30"]

1. d4 {[%emt 0:00:02]} d5 {[%emt 0:00:07]} 2. Nf3 {[%emt 0:00:23]} e6 {[%emt 0:00:51]} 3. g3 {[%emt 0:00:25]} c5 {[%emt 0:00:05]} 4. Bg2 {[%emt 0:00:22]} Nc6 {[%emt 0:00:11]} 5. O-O {[%emt 0:00:54]} Nf6 {[%emt 0:00:09]} 6. b3 {[%emt 0:05:04]} Be7 {[%emt 0:09:58]} 7. dxc5 {[%emt 0:02:03]} Bxc5 {[%emt 0:00:09]} 8. Bb2 {[%emt 0:00:38]} O-O {[%emt 0:00:16]} 9. Nbd2 {[%emt 0:00:51]} Re8 {[%emt 0:00:18]} 10. c4 {[%emt 0:05:41]} d4 {[%emt 0:01:27]} 11. Ng5 {[%emt 0:05:59]} e5 {[%emt 0:03:16]} 12. Nge4 {[%emt 0:01:02]} Nxe4 {[%emt 0:02:52]} 13. Nxe4 {[%emt 0:01:23]} Be7 {[%emt 0:00:12]} 14. Nd2 {[%emt 0:13:10]} Bg4 {[%emt 0:04:14]} 15. h3 {[%emt 0:02:17]} Bh5 {[%emt 0:01:01]} 16. g4 {[%emt 0:13:09]} Bg6 {[%emt 0:00:36]} 17. a3 {[%emt 0:02:37]} a5 {[%emt 0:01:20]} 18. Be4 {[%emt 0:08:30]} Bxe4 {[%emt 0:08:38]} 19. Nxe4 {[%emt 0:00:25]} Qd7 {[%emt 0:06:39]} 20. Nc3 {[%emt 0:09:28]} h5 {[%emt 0:12:45]} 21. f3 {[%emt 0:01:48]} Bc5 {[%emt 0:03:33]} 22. Kg2 {[%emt 0:04:45]} Rad8 {[%emt 0:08:43]} 23. Ne4 {[%emt 0:03:55]} Be7 {[%emt 0:04:43]} 24. Qd3 {[%emt 0:03:31]} f5 {[%emt 0:15:28]} 25. Nf2 {[%emt 0:01:36]} hxg4 {[%emt 0:06:41]} 26. hxg4 {[%emt 0:00:25]} Bh4 {[%emt 0:05:39]} 27. Rh1 {[%emt 0:04:20]} Bxf2 {[%emt 0:00:19]} 28. Kxf2 {[%emt 0:00:24]} e4 {[%emt 0:00:08]} 1/2-1/2

[Event "LEM Niedersachsen-A-Open 2025"]
[Site "Verden"]
[Date "2025.01.02"]
[Round "2.16"]
[White "Aden, Tammo"]
[Black "Muecke, Leonard"]
[Result "1-0"]
[ECO "B07"]
[WhiteElo "2077"]
[BlackElo "1853"]
[Annotator "RC"]
[PlyCount "145"]
[EventDate "2024.12.27"]
[EventType "swiss"]
[EventCountry "GER"]
[SourceTitle "playchess.com"]
[Source "ChessBase"]
[SourceQuality "1"]
[TimeControl "40/5400+30:1800+30"]

1. d4 {[%emt 0:00:03]} g6 {[%emt 0:00:51]} 2. e4 {[%emt 0:00:47]} d6 {[%emt 0:00:07]} 3. Nc3 {[%emt 0:00:58]} Nf6 {[%emt 0:00:16]} 4. Bc4 {[%emt 0:01:44]} Bg7 {[%emt 0:00:24]} 5. h4 {[%emt 0:02:15]} h5 {[%emt 0:00:50]} 6. Bg5 {[%emt 0:03:06]} c6 {[%emt 0:00:50]} 7. Nf3 {[%emt 0:07:57]} b5 {[%emt 0:06:03]} 8. Bd3 {[%emt 0:03:39]} Qc7 {[%emt 0:02:43]} 9. e5 {[%emt 0:06:29]} dxe5 {[%emt 0:19:41]} 10. Nxe5 {[%emt 0:01:33]} Nbd7 {[%emt 0:14:02]} 11. Bf4 {[%emt 0:07:24]} Nxe5 {[%emt 0:03:31]} 12. Bxe5 {[%emt 0:00:06]} Qb6 {[%emt 0:00:49]} 13. Qf3 {[%emt 0:05:29]} Bg4 {[%emt 0:06:21]} 14. Qg3 {[%emt 0:05:04]} O-O {[%emt 0:01:26]} 15. O-O {[%emt 0:04:18]} Nd5 {[%emt 0:09:37]} 16. f3 {[%emt 0:12:08]} Be6 {[%emt 0:02:27]} 17. Bxg7 {[%emt 0:01:51]} Kxg7 {[%emt 0:03:15]} 18. Qe5+ {[%emt 0:00:23]} Kg8 {[%emt 0:02:06]} 19. Bxg6 {[%emt 0:04:58]} Nf6 {[%emt 0:12:08]} 20. Be4 {[%emt 0:08:51]} Rac8 {[%emt 0:02:34]} 21. Rad1 {[%emt 0:03:55]} Rfd8 {[%emt 0:00:31]} 22. Kh1 {[%emt 0:02:10]} Qc7 {[%emt 0:00:39]} 23. Qg5+ {[%emt 0:01:06]} Kf8 {[%emt 0:00:58]} 24. b3 {[%emt 0:02:48]} Qd6 {[%emt 0:06:27]} 25. Rfe1 {[%emt 0:05:29]} a6 {[%emt 0:00:07]} 26. Bf5 {[%emt 0:02:45]} Bxf5 {[%emt 0:01:20]} 27. Qxf5 {[%emt 0:00:03]} Qg3 {[%emt 0:00:37]} 28. Qg5 {[%emt 0:00:20]} Qxg5 {[%emt 0:00:44]} 29. hxg5 {[%emt 0:00:03]} Nd5 {[%emt 0:00:39]} 30. Ne4 {[%emt 0:00:47]} b4 {[%emt 0:01:44]} 31. Kh2 {[%emt 0:02:35]} e6 {[%emt 0:00:06]} 32. Kg3 {[%emt 0:00:55]} Kg7 {[%emt 0:00:30]} 33. Kf2 {[%emt 0:01:49]} a5 {[%emt 0:00:34]} 34. Rh1 {[%emt 0:00:45]} Rh8 {[%emt 0:00:44]} 35. a3 {[%emt 0:01:01]} Kg6 {[%emt 0:00:56]} 36. Ra1 {[%emt 0:00:48]} Ra8 {[%emt 0:00:16]} 37. g3 {[%emt 0:00:38]} Kg7 {[%emt 0:00:45]} 38. Ke2 {[%emt 0:00:42]} Kg6 {[%emt 0:00:46]} 39. Kd2 {[%emt 0:00:39]} Rhd8 {[%emt 0:00:52]} 40. f4 {[%emt 0:01:35]} Ne7 {[%emt 0:00:34]} 41. c3 {[%emt 0:05:41]} bxc3+ {[%emt 0:01:36]} 42. Kxc3 {[%emt 0:00:10]} Nf5 {[%emt 0:20:04]} 43. Rad1 {[%emt 0:00:18]} Rab8 {[%emt 0:01:24]} 44. Rd3 {[%emt 0:04:30]} Ne7 {[%emt 0:04:38]} 45. Rd2 {[%emt 0:04:20]} Kf5 {[%emt 0:02:47]} 46. Nf6 {[%emt 0:01:50]} Nd5+ {[%emt 0:00:09]} 47. Nxd5 {[%emt 0:00:15]} Rxd5 {[%emt 0:01:34]} 48. Rxh5 {[%emt 0:00:32]} Kg4 {[%emt 0:00:33]} 49. Rh7 {[%emt 0:00:29]} c5 {[%emt 0:00:28]} 50. dxc5 {[%emt 0:03:38]} Rxc5+ {[%emt 0:00:18]} 51. Kb2 {[%emt 0:00:59]} Rf5 {[%emt 0:01:29]} 52. Rd3 {[%emt 0:00:21]} Rfb5 {[%emt 0:00:52]} 53. Rxf7 {[%emt 0:00:52]} e5 {[%emt 0:00:20]} 54. g6 {[%emt 0:02:29]} exf4 {[%emt 0:00:07]} 55. gxf4 {[%emt 0:00:50]} Rg8 {[%emt 0:00:55]} 56. g7 {[%emt 0:01:08]} Rf5 {[%emt 0:00:42]} 57. Rxf5 {[%emt 0:03:08]} Kxf5 {[%emt 0:00:06]} 58. Rg3 {[%emt 0:00:33]} Kxf4 {[%emt 0:00:11]} 59. Rg1 {[%emt 0:00:17]} Ke5 {[%emt 0:00:13]} 60. Kc3 {[%emt 0:00:41]} Kd5 {[%emt 0:00:06]} 61. Rg5+ {[%emt 0:00:23]} Kc6 {[%emt 0:00:10]} 62. Kc4 {[%emt 0:00:11]} a4 {[%emt 0:00:55]} 63. b4 {[%emt 0:00:06]} Kb6 {[%emt 0:00:41]} 64. Rg6+ {[%emt 0:00:04]} Ka7 {[%emt 0:00:08]} 65. Kb5 {[%emt 0:00:07]} Kb7 {[%emt 0:00:05]} 66. Kxa4 {[%emt 0:00:04]} Ka7 {[%emt 0:00:09]} 67. b5 {[%emt 0:00:15]} Kb7 {[%emt 0:00:04]} 68. Kb4 {[%emt 0:00:03]} Ka7 {[%emt 0:00:10]} 69. a4 {[%emt 0:00:03]} Kb7 {[%emt 0:00:03]} 70. a5 {[%emt 0:00:03]} Ka7 {[%emt 0:00:15]} 71. a6 {[%emt 0:00:32]} Ka8 {[%emt 0:02:04]} 72. b6 {[%emt 0:01:09]} Kb8 {[%emt 0:00:07]} 73. Rh6 {[%emt 0:00:37]} 1-0